fUST/lending_fUST_20250719
["ID","MTS","AMOUNT","RATE_DAILY","PERIOD"]
[373199176,1752903049505,-460.0,0.00016986,2]
[373199177,1752903049515,-460.0,0.00016986,2]
[373199178,1752903049524,-460.0,0.00016986,2]
[373199179,1752903049534,-460.0,0.00016986,2]
[373199180,1752903049544,-460.0,0.00016986,2]
[373199181,1752903049553,-460.0,0.00016986,2]
[373199182,1752903049563,-460.0,0.00016986,2]
[373199183,1752903049573,-216.15244805,0.00016986,2]
[373199184,1752903049583,-569.23,0.00016986,2]
[373199185,1752903049593,-460.0,0.00016986,2]
[373199186,1752903049603,-460.0,0.00016986,2]
[373199187,1752903049612,-460.0,0.00016986,2]
[373199188,1752903049622,-477.78776284,0.00016986,2]
[373199189,1752903049631,-1086.82,0.00016986,2]
[373199190,1752903049641,-460.0,0.00016986,2]
[373199191,1752903049650,-460.0,0.00016986,2]
[373199192,1752903049660,-460.0,0.00016986,2]
[373199193,1752903049670,-469.63749258,0.00016986,2]
[373199194,1752903049679,-460.0,0.00016986,2]
[373199195,1752903049689,-465.98655467,0.00016986,2]
[373199196,1752903049698,-460.0,0.00016986,2]
[373199197,1752903049708,-460.0,0.00016986,2]
[373199198,1752903049718,-906.52,0.00016986,2]
[373199199,1752903049728,-460.0,0.00016986,2]
[373199200,1752903049738,-460.0,0.00016986,2]
[373199201,1752903049748,-460.0,0.00016986,2]
[373199202,1752903049758,-460.0,0.00016986,2]
[373199203,1752903049768,-460.0,0.00016986,2]
[373199204,1752903049777,-460.0,0.00016986,2]
[373199205,1752903049787,-460.0,0.00016986,2]
[373199206,1752903049796,-3126.57,0.00016986,2]
[373199207,1752903049806,-419.16302467,0.00016986,2]
[373199208,1752903049815,-460.0,0.00016986,2]
[373199209,1752903049824,-2100.02737365,0.00016997,2]
[373199210,1752903049834,-429.3901486,0.00017,2]
[373199211,1752903049843,-429.3901486,0.00017,2]
[373199212,1752903049854,-429.3901486,0.00017,2]
[373199213,1752903049864,-429.3901486,0.00017,2]
[373199214,1752903049874,-429.3901486,0.00017,2]
[373199215,1752903049883,-429.3901486,0.00017,2]
[373199216,1752903049894,-429.3901486,0.00017,2]
[373199217,1752903049903,-429.3901486,0.00017,2]
[373199218,1752903049913,-429.3901486,0.00017,2]
[373199219,1752903049923,-430.4287084,0.00017,2]
[373199220,1752903049935,-429.3901486,0.00017,2]
[373199221,1752903049945,-153.0,0.00017,2]
[373199222,1752903049954,-429.3901486,0.00017,2]
[373199223,1752903049963,-153.0,0.00017,2]
[373199224,1752903049974,-429.3901486,0.00017,2]
[373199225,1752903049983,-153.0,0.00017,2]
[373199226,1752903049993,-429.1763098,0.00017,2]
[373199227,1752903050002,-429.3901486,0.00017,2]
[373199228,1752903050012,-153.0,0.00017,2]
[373199229,1752903050021,-52785.81477334,0.00017,2]
[373199230,1752903050031,-429.3901486,0.00017,2]
[373199231,1752903050041,-153.0,0.00017,2]
[373199232,1752903050051,-1002.30893642,0.00017021,2]
[373199233,1752903050060,-500.0,0.00017056,2]
[373199234,1752903050070,-500.38190345,0.00017056,2]
[373199235,1752903050080,-502.51153415,0.00017056,2]
[373199236,1752903050089,-501.04995706,0.00017056,2]
[373199237,1752903050099,-500.0,0.00017056,2]
[373199238,1752903050109,-151.44394268,0.00017058,2]
[373199239,1752903050118,-151.0,0.00017058,2]
[373199240,1752903050128,-500.0,0.00017058,2]
[373199241,1752903050138,-151.0,0.00017058,2]
[373199242,1752903050147,-152.26439561,0.00017058,2]
[373199243,1752903050157,-151.0,0.00017058,2]
[373199244,1752903050167,-198.99342437,0.00017058,2]
[373199245,1752903050177,-500.0,0.00017058,2]
[373199246,1752903050187,-269.81533992,0.00017058,2]
[373199247,1752903050198,-199.41888523,0.00017058,2]
[373199248,1752903050208,-151.0,0.00017058,2]
[373199249,1752903050218,-151.67952302,0.00017058,2]
[373199250,1752903050228,-209.87789923,0.00017068,3]
[373199251,1752903050238,-334.9365324,0.00017171,2]
[373199252,1752903050248,-1659.19925331,0.00017253,2]
[373199253,1752903050258,-460.0,0.0001726,2]
[373199254,1752903050268,-460.0,0.0001726,2]
[373199255,1752903050279,-460.0,0.0001726,2]
[373199256,1752903050289,-460.0,0.0001726,2]
[373199257,1752903050299,-460.0,0.0001726,2]
[373199258,1752903050308,-460.0,0.0001726,2]
[373199259,1752903050317,-460.0,0.0001726,2]
[373199260,1752903050327,-460.0,0.0001726,2]
[373199261,1752903050337,-460.0,0.0001726,2]
[373199262,1752903050346,-407.41580795,0.0001726,2]
[373199263,1752903050356,-460.0,0.0001726,2]
[373199264,1752903050368,-460.0,0.0001726,2]
[373199265,1752903050378,-460.0,0.0001726,2]
[373199266,1752903050388,-460.0,0.0001726,2]
[373199267,1752903050398,-460.0,0.0001726,2]
[373199268,1752903050408,-460.0,0.0001726,2]
[373199269,1752903050418,-460.0,0.0001726,2]
[373199270,1752903050427,-239.07823259,0.0001726,2]
[373199271,1752903050437,-460.0,0.0001726,2]
[373199272,1752903050447,-469.08121383,0.0001726,2]
[373199273,1752903050457,-460.0,0.0001726,2]
[373199274,1752903050467,-460.0,0.0001726,2]
[373199275,1752903050476,-471.40256785,0.0001726,2]
[373199276,1752903050486,-460.0,0.0001726,2]
[373199277,1752903050495,-460.0,0.0001726,2]
[373199278,1752903050505,-460.0,0.0001726,2]
[373199279,1752903050514,-460.0,0.0001726,2]
[373199280,1752903050525,-460.0,0.0001726,2]
[373199281,1752903050535,-460.0,0.0001726,2]
[373199282,1752903050545,-460.0,0.0001726,2]
[373199283,1752903050555,-460.0,0.0001726,2]
[373199284,1752903050565,-460.0,0.0001726,2]
[373199285,1752903050575,-460.0,0.0001726,2]
[373199286,1752903050584,-460.0,0.0001726,2]
[373199287,1752903050594,-460.0,0.0001726,2]
[373199288,1752903050604,-460.0,0.0001726,2]
[373199289,1752903050614,-460.0,0.0001726,2]
[373199290,1752903050624,-460.0,0.0001726,2]
[373199291,1752903050633,-460.0,0.0001726,2]
[373199292,1752903050643,-460.0,0.0001726,2]
[373199293,1752903050652,-460.0,0.0001726,2]
[373199294,1752903050662,-460.0,0.0001726,2]
[373199295,1752903050671,-4435.91,0.0001726,2]
[373199296,1752903050681,-1074.17,0.0001726,2]
[373199297,1752903050692,-192.01727641,0.0001726,2]
[373199298,1752903050703,-460.0,0.0001726,2]
[373199299,1752903050713,-460.0,0.0001726,2]
[373199300,1752903050723,-460.0,0.0001726,2]
[373199301,1752903050732,-460.0,0.0001726,2]
[373199302,1752903050741,-460.0,0.0001726,2]
[373199303,1752903050750,-179.80426052,0.0001726,2]
[373199304,1752903050759,-460.0,0.0001726,2]
[373199305,1752903050769,-460.0,0.0001726,2]
[373199306,1752903050778,-460.0,0.0001726,2]
[373199307,1752903050789,-460.0,0.0001726,2]
[373199308,1752903050799,-460.0,0.0001726,2]
[373199309,1752903050809,-460.0,0.0001726,2]
[373199310,1752903050819,-460.0,0.0001726,2]
[373199311,1752903050830,-460.0,0.0001726,2]
[373199312,1752903050839,-460.0,0.0001726,2]
[373199313,1752903050849,-460.0,0.0001726,2]
[373199314,1752903050859,-460.0,0.0001726,2]
[373199315,1752903050869,-460.0,0.0001726,2]
[373199316,1752903050880,-460.0,0.0001726,2]
[373199317,1752903050891,-460.0,0.0001726,2]
[373199318,1752903050901,-460.0,0.0001726,2]
[373199319,1752903050911,-460.0,0.0001726,2]
[373199320,1752903050921,-460.0,0.0001726,2]
[373199321,1752903050931,-1978.9,0.0001726,2]
[373199322,1752903050940,-460.0,0.0001726,2]
[373199323,1752903050950,-460.0,0.0001726,2]
[373199324,1752903050959,-460.0,0.0001726,2]
[373199325,1752903050969,-460.0,0.0001726,2]
[373199326,1752903050978,-1505.02,0.0001726,2]
[373199327,1752903050987,-460.0,0.0001726,2]
[373199328,1752903050996,-460.0,0.0001726,2]
[373199329,1752903051004,-460.0,0.0001726,2]
[373199330,1752903051013,-460.0,0.0001726,2]
[373199331,1752903051023,-460.0,0.0001726,2]
[373199332,1752903051033,-460.0,0.0001726,2]
[373199333,1752903051043,-460.0,0.0001726,2]
[373199334,1752903051053,-460.0,0.0001726,2]
[373199335,1752903051063,-460.0,0.0001726,2]
[373199336,1752903051071,-460.0,0.0001726,2]
[373199337,1752903051081,-460.0,0.0001726,2]
[373199338,1752903051092,-460.0,0.0001726,2]
[373199339,1752903051102,-460.0,0.0001726,2]
[373199340,1752903051112,-156.97501631,0.0001726,2]
[373199341,1752903051121,-1442.04,0.0001726,2]
[373199342,1752903051129,-460.0,0.0001726,2]
[373199343,1752903051138,-460.0,0.0001726,2]
[373199344,1752903051148,-584.9,0.0001726,2]
[373199345,1752903051157,-591.67124093,0.0001726,2]
[373199346,1752903051166,-406.39391545,0.0001726,2]
[373199347,1752903051176,-633.79,0.0001726,2]
[373199348,1752903051187,-460.0,0.0001726,2]
[373199349,1752903051198,-460.0,0.0001726,2]
[373199350,1752903051207,-460.0,0.0001726,2]
[373199351,1752903051217,-460.0,0.0001726,2]
[373199352,1752903051226,-329.01881849,0.0001726,2]
[373199353,1752903051235,-460.0,0.0001726,2]
[373199354,1752903051245,-2208.01,0.0001726,2]
[373199355,1752903051254,-460.0,0.0001726,2]
[373199356,1752903051264,-460.0,0.0001726,2]
[373199357,1752903051273,-2144.38,0.0001726,2]
[373199358,1752903051282,-460.0,0.0001726,2]
[373199359,1752903051291,-460.0,0.0001726,2]
[373199360,1752903051301,-460.0,0.0001726,2]
[373199361,1752903051310,-460.0,0.0001726,2]
[373199362,1752903051320,-460.0,0.0001726,2]
[373199363,1752903051329,-460.0,0.0001726,2]
[373199364,1752903051339,-782.71,0.0001726,2]
[373199365,1752903051348,-460.0,0.0001726,2]
[373199366,1752903051358,-460.0,0.0001726,2]
[373199367,1752903051367,-460.0,0.0001726,2]
[373199368,1752903051377,-460.0,0.0001726,2]
[373199369,1752903051386,-1171.09,0.0001726,2]
[373199370,1752903051397,-460.0,0.0001726,2]
[373199371,1752903051406,-1364.49,0.0001726,2]
[373199372,1752903051415,-460.0,0.0001726,2]
[373199373,1752903051426,-461.87,0.0001726,2]
[373199374,1752903051437,-466.19711598,0.0001726,2]
[373199375,1752903051447,-460.0,0.0001726,2]
[373199376,1752903051457,-460.0,0.0001726,2]
[373199377,1752903051467,-583.74,0.0001726,2]
[373199378,1752903051478,-460.0,0.0001726,2]
[373199379,1752903051487,-460.0,0.0001726,2]
[373199380,1752903051498,-460.0,0.0001726,2]
[373199381,1752903051508,-460.0,0.0001726,2]
[373199382,1752903051517,-759.08,0.0001726,2]
[373199383,1752903051526,-1623.5,0.0001726,2]
[373199384,1752903051536,-460.0,0.0001726,2]
[373199385,1752903051544,-460.0,0.0001726,2]
[373199386,1752903051652,-460.0,0.0001726,2]
[373199387,1752903051662,-460.0,0.0001726,2]
[373199388,1752903051672,-460.0,0.0001726,2]
[373199389,1752903051682,-460.0,0.0001726,2]
[373199390,1752903051692,-555.44207815,0.0001726,2]
[373199391,1752903051701,-460.0,0.0001726,2]
[373199392,1752903051711,-460.0,0.0001726,2]
[373199393,1752903051721,-460.0,0.0001726,2]
[373199394,1752903051730,-491.03,0.0001726,2]
[373199395,1752903051740,-460.0,0.0001726,2]
[373199396,1752903051750,-525.35,0.0001726,2]
[373199397,1752903051759,-473.37,0.0001726,2]
[373199398,1752903051768,-460.0,0.0001726,2]
[373199399,1752903051777,-460.0,0.0001726,2]
[373199400,1752903051787,-460.0,0.0001726,2]
[373199401,1752903051796,-460.0,0.0001726,2]
[373199402,1752903051806,-2274.07,0.0001726,2]
[373199403,1752903051815,-460.0,0.0001726,2]
[373199404,1752903051825,-460.0,0.0001726,2]
[373199405,1752903051834,-460.0,0.0001726,2]
[373199406,1752903051843,-460.0,0.0001726,2]
[373199407,1752903051853,-1301.23,0.0001726,2]
[373199408,1752903051863,-499.63693295,0.0001726,2]
[373199409,1752903051872,-460.0,0.0001726,2]
[373199410,1752903051882,-3822.72,0.0001726,2]
[373199411,1752903051891,-460.0,0.0001726,2]
[373199412,1752903051902,-460.0,0.0001726,2]
[373199413,1752903051912,-460.0,0.0001726,2]
[373199414,1752903051922,-460.0,0.0001726,2]
[373199415,1752903051931,-205.45351343,0.0001726,2]
[373199416,1752903051940,-460.0,0.0001726,2]
[373199417,1752903051950,-460.0,0.0001726,2]
[373199418,1752903051959,-460.0,0.0001726,2]
[373199419,1752903051968,-569.23,0.0001726,2]
[373199420,1752903051978,-460.0,0.0001726,2]
[373199421,1752903051987,-460.0,0.0001726,2]
[373199422,1752903051996,-460.0,0.0001726,2]
[373199423,1752903052005,-460.0,0.0001726,2]
[373199424,1752903052014,-1086.82,0.0001726,2]
[373199425,1752903052024,-460.0,0.0001726,2]
[373199426,1752903052034,-460.0,0.0001726,2]
[373199427,1752903052043,-375.36760561,0.0001726,2]
[373199428,1752903052053,-460.0,0.0001726,2]
[373199429,1752903052063,-906.52,0.0001726,2]
[373199430,1752903052073,-460.0,0.0001726,2]
[373199431,1752903052082,-569.61269116,0.0001726,2]
[373199432,1752903052091,-460.0,0.0001726,2]
[373199433,1752903052100,-460.0,0.0001726,2]
[373199434,1752903052110,-460.0,0.0001726,2]
[373199435,1752903052119,-460.0,0.0001726,2]
[373199436,1752903052129,-460.0,0.0001726,2]
[373199437,1752903052139,-3126.57,0.0001726,2]
[373199438,1752903052150,-460.0,0.0001726,2]
[373199439,1752903052160,-1730.99,0.000173,2]
[373199440,1752903052170,-518.97072283,0.00017321,2]
[373199441,1752903052179,-971.66974233,0.00017321,2]
[373199442,1752903052188,-1000.0,0.00017321,2]
[373199443,1752903052197,-500.69722503,0.00017321,2]
[373199444,1752903052207,-302.17969699,0.00017321,2]
[373199445,1752903052216,-500.0,0.00017321,2]
[373199446,1752903052225,-500.99229785,0.00017321,2]
[373199447,1752903052234,-1000.0,0.00017321,2]
[373199448,1752903052244,-1000.0,0.00017321,2]
[373199449,1752903052253,-151.0,0.00017332,2]
[373199450,1752903052263,-500.0,0.00017332,2]
[373199451,1752903052273,-151.0,0.00017332,2]
[373199452,1752903052282,-151.0,0.00017332,2]
[373199453,1752903052292,-500.0,0.00017332,2]
[373199454,1752903052301,-564.31978639,0.00017521,2]
[373199455,1752903052311,-500.0,0.00017521,2]
[373199456,1752903052322,-460.0,0.00017534,2]
[373199457,1752903052331,-460.0,0.00017534,2]
[373199458,1752903052340,-460.0,0.00017534,2]
[373199459,1752903052350,-460.0,0.00017534,2]
[373199460,1752903052363,-460.0,0.00017534,2]
[373199461,1752903052372,-460.0,0.00017534,2]
[373199462,1752903052382,-465.26823971,0.00017534,2]
[373199463,1752903052391,-460.0,0.00017534,2]
[373199464,1752903052403,-460.0,0.00017534,2]
[373199465,1752903052413,-460.0,0.00017534,2]
[373199466,1752903052423,-464.5050163,0.00017534,2]
[373199467,1752903052432,-460.0,0.00017534,2]
[373199468,1752903052444,-460.0,0.00017534,2]
[373199469,1752903052454,-454.84682364,0.00017534,2]
[373199470,1752903052463,-460.0,0.00017534,2]
[373199471,1752903052474,-460.0,0.00017534,2]
[373199472,1752903052483,-433.80641339,0.00017534,2]
[373199473,1752903052493,-460.0,0.00017534,2]
[373199474,1752903052503,-460.0,0.00017534,2]
[373199475,1752903052512,-460.0,0.00017534,2]
[373199476,1752903052522,-460.0,0.00017534,2]
[373199477,1752903052532,-460.0,0.00017534,2]
[373199478,1752903052541,-460.0,0.00017534,2]
[373199479,1752903052551,-460.0,0.00017534,2]
[373199480,1752903052561,-464.77000809,0.00017534,2]
[373199481,1752903052570,-4435.91,0.00017534,2]
[373199482,1752903052579,-1074.17,0.00017534,2]
[373199483,1752903052589,-460.0,0.00017534,2]
[373199484,1752903052598,-460.0,0.00017534,2]
[373199485,1752903052608,-179.94604781,0.00017534,2]
[373199486,1752903052618,-460.0,0.00017534,2]
[373199487,1752903052627,-460.0,0.00017534,2]
[373199488,1752903052637,-460.0,0.00017534,2]
[373199489,1752903052647,-465.28597891,0.00017534,2]
[373199490,1752903052657,-460.0,0.00017534,2]
[373199491,1752903052666,-460.0,0.00017534,2]
[373199492,1752903052675,-460.0,0.00017534,2]
[373199493,1752903052684,-460.0,0.00017534,2]
[373199494,1752903052694,-460.0,0.00017534,2]
[373199495,1752903052703,-460.0,0.00017534,2]
[373199496,1752903052713,-483.51288071,0.00017534,2]
[373199497,1752903052722,-460.0,0.00017534,2]
[373199498,1752903052732,-460.0,0.00017534,2]
[373199499,1752903052741,-460.0,0.00017534,2]
[373199500,1752903052751,-460.0,0.00017534,2]
[373199501,1752903052760,-460.0,0.00017534,2]
[373199502,1752903052769,-460.0,0.00017534,2]
[373199503,1752903052778,-460.0,0.00017534,2]
[373199504,1752903052787,-1978.9,0.00017534,2]
[373199505,1752903052797,-460.0,0.00017534,2]
[373199506,1752903052806,-460.0,0.00017534,2]
[373199507,1752903052815,-460.0,0.00017534,2]
[373199508,1752903052825,-460.0,0.00017534,2]
[373199509,1752903052835,-1505.02,0.00017534,2]
[373199510,1752903052843,-460.0,0.00017534,2]
[373199511,1752903052853,-460.0,0.00017534,2]
[373199512,1752903052863,-460.0,0.00017534,2]
[373199513,1752903052872,-460.0,0.00017534,2]
[373199514,1752903052881,-460.0,0.00017534,2]
[373199515,1752903052891,-460.0,0.00017534,2]
[373199516,1752903052901,-460.0,0.00017534,2]
[373199517,1752903052911,-460.0,0.00017534,2]
[373199518,1752903052920,-460.0,0.00017534,2]
[373199519,1752903052930,-460.0,0.00017534,2]
[373199520,1752903052939,-460.0,0.00017534,2]
[373199521,1752903052948,-460.0,0.00017534,2]
[373199522,1752903052957,-1442.04,0.00017534,2]
[373199523,1752903052968,-460.0,0.00017534,2]
[373199524,1752903052978,-464.0650274,0.00017534,2]
[373199525,1752903052987,-584.9,0.00017534,2]
[373199526,1752903052996,-633.79,0.00017534,2]
[373199527,1752903053005,-460.0,0.00017534,2]
[373199528,1752903053014,-460.0,0.00017534,2]
[373199529,1752903053024,-518.30338123,0.00017534,2]
[373199530,1752903053034,-460.0,0.00017534,2]
[373199531,1752903053044,-460.0,0.00017534,2]
[373199532,1752903053053,-2208.01,0.00017534,2]
[373199533,1752903053063,-460.0,0.00017534,2]
[373199534,1752903053072,-460.0,0.00017534,2]
[373199535,1752903053081,-2144.38,0.00017534,2]
[373199536,1752903053090,-463.89583808,0.00017534,2]
[373199537,1752903053100,-460.0,0.00017534,2]
[373199538,1752903053109,-460.0,0.00017534,2]
[373199539,1752903053118,-460.0,0.00017534,2]
[373199540,1752903053127,-460.0,0.00017534,2]
[373199541,1752903053137,-460.0,0.00017534,2]
[373199542,1752903053146,-782.71,0.00017534,2]
[373199543,1752903053156,-470.7258081,0.00017534,2]
[373199544,1752903053166,-472.4427842,0.00017534,2]
[373199545,1752903053175,-460.0,0.00017534,2]
[373199546,1752903053184,-1171.09,0.00017534,2]
[373199547,1752903053194,-460.0,0.00017534,2]
[373199548,1752903053203,-1364.49,0.00017534,2]
[373199549,1752903053212,-460.0,0.00017534,2]
[373199550,1752903053222,-461.87,0.00017534,2]
[373199551,1752903053231,-460.0,0.00017534,2]
[373199552,1752903053240,-460.0,0.00017534,2]
[373199553,1752903053250,-583.74,0.00017534,2]
[373199554,1752903053260,-460.0,0.00017534,2]
[373199555,1752903053270,-460.0,0.00017534,2]
[373199556,1752903053279,-460.0,0.00017534,2]
[373199557,1752903053288,-759.08,0.00017534,2]
[373199558,1752903053298,-1623.5,0.00017534,2]
[373199559,1752903053308,-460.0,0.00017534,2]
[373199560,1752903053317,-460.0,0.00017534,2]
[373199561,1752903053327,-460.0,0.00017534,2]
[373199562,1752903053337,-460.0,0.00017534,2]
[373199563,1752903053346,-467.71374881,0.00017534,2]
[373199564,1752903053356,-460.0,0.00017534,2]
[373199565,1752903053365,-460.0,0.00017534,2]
[373199566,1752903053375,-460.0,0.00017534,2]
[373199567,1752903053384,-460.0,0.00017534,2]
[373199568,1752903053395,-491.03,0.00017534,2]
[373199569,1752903053404,-460.0,0.00017534,2]
[373199570,1752903053413,-525.35,0.00017534,2]
[373199571,1752903053424,-473.37,0.00017534,2]
[373199572,1752903053434,-460.0,0.00017534,2]
[373199573,1752903053443,-460.0,0.00017534,2]
[373199574,1752903053453,-460.0,0.00017534,2]
[373199575,1752903053463,-460.0,0.00017534,2]
[373199576,1752903053472,-2274.07,0.00017534,2]
[373199577,1752903053483,-460.0,0.00017534,2]
[373199578,1752903053494,-460.0,0.00017534,2]
[373199579,1752903053504,-460.0,0.00017534,2]
[373199580,1752903053513,-1301.23,0.00017534,2]
[373199581,1752903053524,-460.0,0.00017534,2]
[373199582,1752903053533,-3822.72,0.00017534,2]
[373199583,1752903053543,-468.42813134,0.00017534,2]
[373199584,1752903053553,-460.0,0.00017534,2]
[373199585,1752903053563,-460.0,0.00017534,2]
[373199586,1752903053575,-460.0,0.00017534,2]
[373199587,1752903053585,-151.0,0.00017534,2]
[373199588,1752903053596,-460.0,0.00017534,2]
[373199589,1752903053608,-460.0,0.00017534,2]
[373199590,1752903053618,-460.0,0.00017534,2]
[373199591,1752903053627,-151.0,0.00017534,2]
[373199592,1752903053636,-569.23,0.00017534,2]
[373199593,1752903053647,-460.0,0.00017534,2]
[373199594,1752903053656,-460.0,0.00017534,2]
[373199595,1752903053666,-460.0,0.00017534,2]
[373199596,1752903053675,-460.0,0.00017534,2]
[373199597,1752903053685,-151.0,0.00017534,2]
[373199598,1752903053695,-1086.82,0.00017534,2]
[373199599,1752903053704,-460.0,0.00017534,2]
[373199600,1752903053715,-460.0,0.00017534,2]
[373199601,1752903053725,-906.52,0.00017534,2]
[373199602,1752903053736,-460.0,0.00017534,2]
[373199603,1752903053842,-151.490521,0.00017534,2]
[373199604,1752903053854,-460.0,0.00017534,2]
[373199605,1752903053864,-460.0,0.00017534,2]
[373199606,1752903053874,-460.0,0.00017534,2]
[373199607,1752903053884,-234.11569496,0.00017534,2]
[373199608,1752903053895,-460.0,0.00017534,2]
[373199609,1752903053904,-3126.57,0.00017534,2]
[373199610,1752903053914,-800.0,0.00017542,2]
[373199611,1752903053925,-1331.90040419,0.00017569,2]
[373199612,1752903053936,-300.63562019,0.000176,2]
[373199613,1752903053946,-911.94009619,0.00017604,2]
[373199614,1752903053955,-151.0,0.00017606,2]
[373199615,1752903053965,-500.0,0.00017606,2]
[373199616,1752903053975,-198.0,0.00017606,2]
[373199617,1752903053984,-198.0,0.00017606,2]
[373199618,1752903053993,-500.0,0.00017606,2]
[373199619,1752903054003,-1828.16,0.00017698,3]
[373199620,1752903054012,-914.08,0.00017698,3]
[373199621,1752903054021,-457.04,0.00017698,3]
[373199622,1752903054031,-760.02,0.00017698,3]
[373199623,1752903054040,-380.0,0.00017698,3]
[373199624,1752903054050,-153.378373,0.00017698,2]
[373199625,1752903054059,-153.794426,0.00017698,2]
[373199626,1752903054069,-151.0,0.00017698,2]
[373199627,1752903054079,-151.0,0.00017698,2]
[373199628,1752903054088,-151.0,0.00017698,2]
[373199629,1752903054097,-203.956326,0.00017698,2]
[373199630,1752903054107,-203.956326,0.00017698,2]
[373199631,1752903054116,-1201.486897,0.00017728,2]
[373199632,1752903054126,-1201.486897,0.00017728,2]
[373199633,1752903054136,-460.0,0.00017808,2]
[373199634,1752903054145,-460.0,0.00017808,2]
[373199635,1752903054154,-418.3573526,0.00017808,2]
[373199636,1752903054164,-460.0,0.00017808,2]
[373199637,1752903054173,-460.0,0.00017808,2]
[373199638,1752903054182,-460.0,0.00017808,2]
[373199639,1752903054192,-460.0,0.00017808,2]
[373199640,1752903054201,-460.0,0.00017808,2]
[373199641,1752903054211,-460.0,0.00017808,2]
[373199642,1752903054220,-592.80965756,0.00017808,2]
[373199643,1752903054229,-460.0,0.00017808,2]
[373199644,1752903054239,-460.0,0.00017808,2]
[373199645,1752903054249,-460.0,0.00017808,2]
[373199646,1752903054258,-471.55391111,0.00017808,2]
[373199647,1752903054268,-460.0,0.00017808,2]
[373199648,1752903054278,-1074.17,0.00017808,2]
[373199649,1752903054288,-4435.91,0.00017808,2]
[373199650,1752903054298,-460.0,0.00017808,2]
[373199651,1752903054307,-460.0,0.00017808,2]
[373199652,1752903054318,-460.0,0.00017808,2]
[373199653,1752903054328,-460.0,0.00017808,2]
[373199654,1752903054338,-355.60891699,0.00017808,2]
[373199655,1752903054347,-460.0,0.00017808,2]
[373199656,1752903054357,-460.0,0.00017808,2]
[373199657,1752903054371,-460.0,0.00017808,2]
[373199658,1752903054381,-174.18791115,0.00017808,2]
[373199659,1752903054391,-460.0,0.00017808,2]
[373199660,1752903054402,-562.42366653,0.00017808,2]
[373199661,1752903054412,-460.0,0.00017808,2]
[373199662,1752903054422,-460.0,0.00017808,2]
[373199663,1752903054432,-151.0,0.00017808,2]
[373199664,1752903054443,-151.0,0.00017808,2]
[373199665,1752903054453,-151.0,0.00017808,2]
[373199666,1752903054463,-151.0,0.00017808,2]
[373199667,1752903054473,-460.0,0.00017808,2]
[373199668,1752903054483,-460.0,0.00017808,2]
[373199669,1752903054493,-152.405434,0.00017808,2]
[373199670,1752903054503,-269.43289907,0.00017808,2]
[373199671,1752903054513,-1978.9,0.00017808,2]
[373199672,1752903054523,-460.0,0.00017808,2]
[373199673,1752903054533,-460.0,0.00017808,2]
[373199674,1752903054543,-460.0,0.00017808,2]
[373199675,1752903054553,-460.0,0.00017808,2]